{"text_format":"1","workbook":"xlsx","n_sheets":7,"sheets":["instrukcja","rejestr  wydatków 1 kw","rejestr  wydatków 2 kw","rejestr  wydatków 3 kw ","rejestr  wydatków 4 kw ","podsumowanie","część planu"],"not_rendered":{"charts":0,"images":0,"macros":1,"external_links":0,"defined_names":10,"comments":0,"pivot_tables":0},"unopened":[],"bounds":{"document_bytes":16777216,"sheet_cells":100000,"rows_first":2000,"rows_last":500,"rows_between":2000,"halvings":0,"cell_chars":16384,"cell_head_chars":4096},"cells_cut":0,"cells_raw":0,"read":"whole","date_system":"1900"}

{"sheet":"instrukcja","index":0,"n_rows":16,"n_cols":3,"rows_kept":16,"cut":false,"hidden":false,"merged":[[2,2,2,14],[6,2,6,6],[4,2,4,13],[7,2,7,14]]}
[]
[]
[null,null,"Koszty postępowań i przewodów dokt, hab.,prof. - koszty z tym związane, m.in. noclegi recenzentów, umowy i rachunki za recenzje i oceny"]
[null,null,"Koszty praktyk terenowych - praktyki studenckie, ćwiczenia terenowe, transport studentów związany z praktykami"]
[null,null,"Materiały - materiały, materiały specjalistyczne do ćwiczeń, materiały laboratoryjne, pasze, nawozy, paliwa, oleje, książki, czasopisma, księgozbiór, środki czystościowe, paliwa, oleje"]
[null,null,"Odczynniki - odczynniki, trucizny, alkohole"]
[null,null,"Podróże - podróże krajowe i zagraniczne"]
[null,null,"Pozostałe - usługi naprawy, serwisowe, konserwacje, transportowe, gastronomiczne, hotelowe, konferencje, seminaria, usługi telekomunikacyjne, publikacje, usługi weterynaryjne, licencje aktualiz., pozostałe usługi, usługi dzierżawy sprzętu"]
[]
[]
["postępowania","I kwartał"]
["praktyki","II kwartał"]
["materiały","III kwartał"]
["odczynniki","IV kwartał"]
["podróże"]
["pozostałe"]

{"sheet":"rejestr  wydatków 1 kw","index":1,"n_rows":47,"n_cols":12,"rows_kept":47,"cut":false,"hidden":false,"merged":[]}
[null,null,null,null,null,null,null,null,null,"Typ wydatku:","Suma za kwartał","Suma roczna:"]
[null,null,null,"Rejestr faktur/dokumentów finansowych płatnych z dydaktyki Wydziału",null,null,null,null,null,"postępowania",{"$f":"SUMIF($H$11:$H$42,\"postępowania\",$G$11:$G$42)","v":0},{"$f":"K2","v":0}]
[null,null,null,null,null,"I kwartał",null,null,null,"praktyki",{"$f":"SUMIF(H$11:$H$42,\"praktyki\",$G$11:$G$42)","v":0},{"$f":"K3","v":0}]
[null,null,null,null,null,null,null,null,null,"pozostałe w tym:",{"$f":"SUM(K5:K8)","v":0},0]
[" Instrukcja: Aby dodać  nowy wiersz do tabeli zaznacz jedną z komórek tabeli i kliknij prawy klawiszem myszki Wstaw-> Wiersze tabeli powyżej.",null,null,null,null,null,null,null,null,"materiały",{"$f":"SUMIF($H$11:$H$44,\"materiały\",$G$11:$G$44)","v":0},0]
[null,null,null,null,null,null,null,null,null,"odczynniki",{"$f":"SUMIF($H$11:$H$44,\"odczynniki\",$G$11:$G$44)","v":0},0]
[null,null,null,null,null,"Limit",null,null,null,"podróże ",{"$f":"SUMIF($H$11:$H$44,\"podróże\",$G$11:$G$44)","v":0},0]
[null,null,null,null,null,"Pozostało",{"$f":"$G$7-$L$9","v":0},null,null,"pozostałe",{"$f":"SUMIF($H$11:$H$46,\"pozostałe\",$G$11)","v":0},0]
[null,null,null,null,null,null,null,null,null,"Razem:",{"$f":"K2+K3+K4","v":0},0]
[null,"Lp.","Nazwa firmy","Numer faktury","Data wystawienia","Kwota netto","Kwota brutto","Typ wydatku"]
[null,1]
[null,2]
[null,3]
[null,4]
[null,5]
[null,6]
[null,7]
[null,8]
[null,9]
[null,10]
[null,11]
[null,12]
[null,13]
[null,14]
[null,15]
[null,16]
[null,17]
[null,18]
[null,19]
[null,20]
[null,21]
[null,22]
[null,23]
[null,24]
[null,25]
[null,26]
[null,27]
[null,28]
[null,29]
[null,30]
[null,31]
[]
[]
[]
[]
[]
[null,null,null,"Razem :",null,{"$f":"SUBTOTAL(109,TabelaWydatków[Kwota netto])","v":0},{"$f":"SUBTOTAL(109,TabelaWydatków[Kwota brutto])","v":0}]

{"sheet":"rejestr  wydatków 2 kw","index":2,"n_rows":45,"n_cols":12,"rows_kept":45,"cut":false,"hidden":false,"merged":[]}
[null,null,null,null,null,null,null,null,null,"Typ wydatku:","Suma za kwartał","Suma roczna:"]
[null,null,null,"Rejestr faktur/dokumentów finansowych płatnych z dydaktyki Wydziału",null,null,null,null,null,"postępowania",{"$f":"SUMIF($H$11:$H$44,\"postępowania\",$G$11:$G$44)","v":0},{"$f":"K2+'rejestr  wydatków 1 kw'!K2","v":0}]
[null,null,null,null,null,"II kwartał",null,null,null,"praktyki",{"$f":"SUMIF(G$11:$H$44,\"praktyki\",$G$11:$G$44)","v":0},{"$f":"K3+'rejestr  wydatków 1 kw'!K3","v":0}]
[null,null,null,null,null,null,null,null,null,"pozostałe w tym:",{"$f":"SUM(K5:K8)","v":0},{"$f":"K4+'rejestr  wydatków 1 kw'!K4","v":0}]
[" Instrukcja: Aby dodać  nowy wiersz do tabeli zaznacz jedną z komórek tabeli i kliknij prawy klawiszem myszki Wstaw-> Wiersze tabeli powyżej.",null,null,null,null,null,null,null,null,"materiały",{"$f":"SUMIF($H$11:$H$44,\"materiały\",$G$11:$G$44)","v":0},{"$f":"K5+'rejestr  wydatków 1 kw'!K5","v":0}]
[null,null,null,null,null,null,null,null,null,"odczynniki",{"$f":"SUMIF($H$11:$H$44,\"odczynniki\",$G$11:$G$44)","v":0},{"$f":"K6+'rejestr  wydatków 1 kw'!K6","v":0}]
[null,null,null,null,null,"Limit",null,null,null,"podróże ",{"$f":"SUMIF($H$11:$H$44,\"podróże\",$G$11:$G$44)","v":0},{"$f":"K7+'rejestr  wydatków 1 kw'!K7","v":0}]
[null,null,null,null,null,"Pozostało",{"$f":"$G$7-$L$9","v":0},null,null,"pozostałe",{"$f":"SUMIF($H$11:$H$44,\"pozostałe\",$G$11)","v":0},{"$f":"K8+'rejestr  wydatków 1 kw'!K8","v":0}]
[null,null,null,null,null,null,null,null,null,"Razem:",{"$f":"K2+K3+K4","v":0},{"$f":"L2+L3+L4","v":0}]
[null,"Lp.","Nazwa firmy","Numer faktury","Data wystawienia","Kwota netto","Kwota brutto","Typ wydatku"]
[null,1]
[null,2]
[null,3]
[null,4]
[null,5]
[null,6]
[null,7]
[null,8]
[null,9]
[null,10]
[null,11]
[null,12]
[null,13]
[null,14]
[null,15]
[null,16]
[null,17]
[null,18]
[null,19]
[null,20]
[null,21]
[null,22]
[null,23]
[null,24]
[null,25]
[null,26]
[null,27]
[null,28]
[null,29]
[null,30]
[null,31]
[]
[]
[]
[null,null,null,"Razem :",null,{"$f":"SUBTOTAL(109,TabelaWydatków3[Kwota netto])","v":0},{"$f":"SUBTOTAL(109,TabelaWydatków3[Kwota brutto])","v":0}]

{"sheet":"rejestr  wydatków 3 kw ","index":3,"n_rows":45,"n_cols":12,"rows_kept":45,"cut":false,"hidden":false,"merged":[]}
[null,null,null,null,null,null,null,null,null,"Typ wydatku:","Suma za kwartał","Suma roczna:"]
[null,null,null,"Rejestr faktur/dokumentów finansowych płatnych z dydaktyki Wydziału",null,null,null,null,null,"postępowania",{"$f":"SUMIF($H$11:$H$44,\"postępowania\",$G$11:$G$44)","v":0},{"$f":"K2+'rejestr  wydatków 1 kw'!K2+'rejestr  wydatków 2 kw'!K2","v":0}]
[null,null,null,null,null,"III kwartał",null,null,null,"praktyki",{"$f":"SUMIF(G$11:$H$44,\"praktyki\",$G$11:$G$44)","v":0},{"$f":"K3+'rejestr  wydatków 1 kw'!K3+'rejestr  wydatków 2 kw'!K3","v":0}]
[null,null,null,null,null,null,null,null,null,"pozostałe w tym:",{"$f":"SUM(K5:K8)","v":0},{"$f":"K4+'rejestr  wydatków 1 kw'!K4+'rejestr  wydatków 2 kw'!K4","v":0}]
[" Instrukcja: Aby dodać  nowy wiersz do tabeli zaznacz jedną z komórek tabeli i kliknij prawy klawiszem myszki Wstaw-> Wiersze tabeli powyżej.",null,null,null,null,null,null,null,null,"materiały",{"$f":"SUMIF($H$11:$H$44,\"materiały\",$G$11:$G$44)","v":0},{"$f":"K5+'rejestr  wydatków 1 kw'!K5+'rejestr  wydatków 2 kw'!K5","v":0}]
[null,null,null,null,null,null,null,null,null,"odczynniki",{"$f":"SUMIF($H$11:$H$44,\"odczynniki\",$G$11:$G$44)","v":0},{"$f":"K6+'rejestr  wydatków 1 kw'!K6+'rejestr  wydatków 2 kw'!K6","v":0}]
[null,null,null,null,null,"Limit",null,null,null,"podróże ",{"$f":"SUMIF($H$11:$H$44,\"podróże\",$G$11:$G$44)","v":0},{"$f":"K7+'rejestr  wydatków 1 kw'!K7+'rejestr  wydatków 2 kw'!K7","v":0}]
[null,null,null,null,null,"Pozostało",{"$f":"$G$7-$L$9","v":0},null,null,"pozostałe",{"$f":"SUMIF($H$11:$H$44,\"pozostałe\",$G$11)","v":0},{"$f":"K8+'rejestr  wydatków 1 kw'!K8+'rejestr  wydatków 2 kw'!K8","v":0}]
[null,null,null,null,null,null,null,null,null,"Razem:",{"$f":"K2+K3+K4","v":0},{"$f":"L2+L3+L4","v":0}]
[null,"Lp.","Nazwa firmy","Numer faktury","Data wystawienia","Kwota netto","Kwota brutto","Typ wydatku"]
[null,1]
[null,2]
[null,3]
[null,4]
[null,5]
[null,6]
[null,7]
[null,8]
[null,9]
[null,10]
[null,11]
[null,12]
[null,13]
[null,14]
[null,15]
[null,16]
[null,17]
[null,18]
[null,19]
[null,20]
[null,21]
[null,22]
[null,23]
[null,24]
[null,25]
[null,26]
[null,27]
[null,28]
[null,29]
[null,30]
[null,31]
[]
[]
[]
[null,null,null,"Razem :",null,{"$f":"SUBTOTAL(109,TabelaWydatków34[Kwota netto])","v":0},{"$f":"SUBTOTAL(109,TabelaWydatków34[Kwota brutto])","v":0}]

{"sheet":"rejestr  wydatków 4 kw ","index":4,"n_rows":47,"n_cols":12,"rows_kept":47,"cut":false,"hidden":false,"merged":[]}
[null,null,null,null,null,null,null,null,null,"Typ wydatku:","Suma za kwartał","Suma roczna:"]
[null,null,null,"Rejestr faktur/dokumentów finansowych płatnych z dydaktyki Wydziału",null,null,null,null,null,"postępowania",{"$f":"SUMIF($H$11:$H$44,\"postępowania\",$G$11:$G$44)","v":0},{"$f":"K2+'rejestr  wydatków 1 kw'!K2+'rejestr  wydatków 2 kw'!K2+'rejestr  wydatków 3 kw '!K2","v":0}]
[null,null,null,null,null,"IV kwartał",null,null,null,"praktyki",{"$f":"SUMIF(G$11:$H$44,\"praktyki\",$G$11:$G$44)","v":0},{"$f":"K3+'rejestr  wydatków 1 kw'!K3+'rejestr  wydatków 2 kw'!K3+'rejestr  wydatków 3 kw '!K3","v":0}]
[null,null,null,null,null,null,null,null,null,"pozostałe w tym:",{"$f":"SUM(K5:K8)","v":0},{"$f":"K4+'rejestr  wydatków 1 kw'!K4+'rejestr  wydatków 2 kw'!K4+'rejestr  wydatków 3 kw '!K4","v":0}]
[" Instrukcja: Aby dodać  nowy wiersz do tabeli zaznacz jedną z komórek tabeli i kliknij prawy klawiszem myszki Wstaw-> Wiersze tabeli powyżej.",null,null,null,null,null,null,null,null,"materiały",{"$f":"SUMIF($H$11:$H$44,\"materiały\",$G$11:$G$44)","v":0},{"$f":"K5+'rejestr  wydatków 1 kw'!K5+'rejestr  wydatków 2 kw'!K5+'rejestr  wydatków 3 kw '!K5","v":0}]
[null,null,null,null,null,null,null,null,null,"odczynniki",{"$f":"SUMIF($H$11:$H$44,\"odczynniki\",$G$11:$G$44)","v":0},{"$f":"K6+'rejestr  wydatków 1 kw'!K6+'rejestr  wydatków 2 kw'!K6+'rejestr  wydatków 3 kw '!K6","v":0}]
[null,null,null,null,null,"Limit",null,null,null,"podróże ",{"$f":"SUMIF($H$11:$H$44,\"podróże\",$G$11:$G$44)","v":0},{"$f":"K7+'rejestr  wydatków 1 kw'!K7+'rejestr  wydatków 2 kw'!K7+'rejestr  wydatków 3 kw '!K7","v":0}]
[null,null,null,null,null,"Pozostało",{"$f":"$G$7-$L$9","v":0},null,null,"pozostałe",{"$f":"SUMIF($H$11:$H$44,\"pozostałe\",$G$11)","v":0},{"$f":"K8+'rejestr  wydatków 1 kw'!K8+'rejestr  wydatków 2 kw'!K8+'rejestr  wydatków 3 kw '!K8","v":0}]
[null,null,null,null,null,null,null,null,null,"Razem:",{"$f":"K2+K3+K4","v":0},{"$f":"L2+L3+L4","v":0}]
[null,"Lp.","Nazwa firmy","Numer faktury","Data wystawienia","Kwota netto","Kwota brutto","Typ wydatku"]
[null,1]
[null,2]
[null,3]
[null,4]
[null,5]
[null,6]
[null,7]
[null,8]
[null,9]
[null,10]
[null,11]
[null,12]
[null,13]
[null,14]
[null,15]
[null,16]
[null,17]
[null,18]
[null,19]
[null,20]
[null,21]
[null,22]
[null,23]
[null,24]
[null,25]
[null,26]
[null,27]
[null,28]
[null,29]
[null,30]
[null,31]
[]
[]
[]
[]
[]
[null,null,null,"Razem :",null,{"$f":"SUBTOTAL(109,TabelaWydatków345[Kwota netto])","v":0},{"$f":"SUBTOTAL(109,TabelaWydatków345[Kwota brutto])","v":0}]

{"sheet":"podsumowanie","index":5,"n_rows":11,"n_cols":7,"rows_kept":11,"cut":false,"hidden":false,"merged":[]}
[null,null,null,"Sumy wydatków w poszczególnych kwartałach."]
[]
[null,{"$f":"'rejestr  wydatków 1 kw'!J1","v":"Typ wydatku:"},"Suma I kwartał","Suma II kwartał","Suma III kwartał","Suma IV kwartał",{"$f":"'rejestr  wydatków 1 kw'!L1","v":"Suma roczna:"}]
[null,{"$f":"'rejestr  wydatków 1 kw'!J2","v":"postępowania"},{"$f":"'rejestr  wydatków 1 kw'!K2","v":0},{"$f":"'rejestr  wydatków 2 kw'!K2","v":0},{"$f":"'rejestr  wydatków 3 kw '!K2","v":0},{"$f":"'rejestr  wydatków 4 kw '!K2","v":0},{"$f":"SUM(C4:F4)","v":0}]
[null,{"$f":"'rejestr  wydatków 1 kw'!J3","v":"praktyki"},{"$f":"'rejestr  wydatków 1 kw'!K3","v":0},{"$f":"'rejestr  wydatków 2 kw'!K3","v":0},{"$f":"'rejestr  wydatków 3 kw '!K3","v":0},{"$f":"'rejestr  wydatków 4 kw '!K3","v":0},{"$f":"SUM(C5:F5)","v":0}]
[null,{"$f":"'rejestr  wydatków 1 kw'!J4","v":"pozostałe w tym:"},{"$f":"'rejestr  wydatków 1 kw'!K4","v":0},{"$f":"'rejestr  wydatków 2 kw'!K4","v":0},{"$f":"'rejestr  wydatków 3 kw '!K4","v":0},{"$f":"'rejestr  wydatków 4 kw '!K4","v":0},0]
[null,{"$f":"'rejestr  wydatków 1 kw'!J5","v":"materiały"},{"$f":"'rejestr  wydatków 1 kw'!K5","v":0},{"$f":"'rejestr  wydatków 2 kw'!K5","v":0},{"$f":"'rejestr  wydatków 3 kw '!K5","v":0},{"$f":"'rejestr  wydatków 4 kw '!K5","v":0},0]
[null,{"$f":"'rejestr  wydatków 1 kw'!J6","v":"odczynniki"},{"$f":"'rejestr  wydatków 1 kw'!K6","v":0},{"$f":"'rejestr  wydatków 2 kw'!K6","v":0},{"$f":"'rejestr  wydatków 3 kw '!K6","v":0},{"$f":"'rejestr  wydatków 4 kw '!K6","v":0},0]
[null,{"$f":"'rejestr  wydatków 1 kw'!J7","v":"podróże "},{"$f":"'rejestr  wydatków 1 kw'!K7","v":0},{"$f":"'rejestr  wydatków 2 kw'!K7","v":0},{"$f":"'rejestr  wydatków 3 kw '!K7","v":0},{"$f":"'rejestr  wydatków 4 kw '!K7","v":0},0]
[null,{"$f":"'rejestr  wydatków 1 kw'!J8","v":"pozostałe"},{"$f":"'rejestr  wydatków 1 kw'!K8","v":0},{"$f":"'rejestr  wydatków 2 kw'!K8","v":0},{"$f":"'rejestr  wydatków 3 kw '!K8","v":0},{"$f":"'rejestr  wydatków 4 kw '!K8","v":0},0]
[null,{"$f":"'rejestr  wydatków 1 kw'!J9","v":"Razem:"},{"$f":"SUM(C4:C5)+C6","v":0},{"$f":"SUM(D4:D5)+D6","v":0},0,0,0]

{"sheet":"część planu","index":6,"n_rows":16,"n_cols":3,"rows_kept":16,"cut":false,"hidden":false,"merged":[[2,0,3,2],[6,0,7,0]]}
["pieczęć Wydziału"]
[null,"Wersja planu"]
["PLAN FINANSOWY"]
[]
[null,"Rok",2019]
["I. PRZYCHODY, KOSZTY I WYNIK WYDZIAŁU"]
[null,2019,2020]
[null,"Wykonanie","Plan"]
["2c. Koszty postępowań i przewodów dokt. I habilit., tyt.profesora",{"$f":"podsumowanie!G4","v":0}]
["2d. Koszty praktyk terenowych",{"$f":"podsumowanie!G5","v":0}]
["2e. Pozostałe koszty w tym:",{"$f":"podsumowanie!G6","v":0}]
[" - materiały",{"$f":"podsumowanie!G7","v":0}]
[" - odczynniki",{"$f":"podsumowanie!G8","v":0}]
[" - podróże",{"$f":"podsumowanie!G9","v":0}]
[" - pozostałe",{"$f":"podsumowanie!G10","v":0}]
["Razem",{"$f":"B9+B10+B11","v":0}]